[Event "Polish University-ch Women 2024"]
[Site "Lublin"]
[Date "2024.02.24"]
[Round "8.5"]
[White "Trybowska, Barbara"]
[Black "Wikar, Martyna"]
[Result "1/2-1/2"]
[ECO "E00"]
[WhiteElo "1859"]
[BlackElo "2214"]
[Annotator "ChessBase"]
[PlyCount "233"]
[EventDate "2024.02.22"]
[EventType "swiss"]
[EventCountry "POL"]
[SourceTitle "playchess.com"]
[Source "ChessBase"]
[SourceQuality "1"]
[TimeControl "600+3"]

1. d4 {[%emt 0:00:02]} Nf6 {[%emt 0:00:01]} 2. c4 {[%emt 0:00:02]} e6 {[%emt 0:00:02]} 3. g3 {[%emt 0:00:01]} a6 {[%emt 0:00:08]} 4. Bg2 {[%emt 0:00:02]} Bb4+ {[%emt 0:00:02]} 5. Nd2 {[%emt 0:00:03]} O-O {[%emt 0:00:03]} 6. Ngf3 {[%emt 0:00:02]} c5 {[%emt 0:00:11]} 7. e3 {[%emt 0:00:21]} Nc6 {[%emt 0:00:05]} 8. O-O {[%emt 0:00:11]} cxd4 {[%emt 0:00:25]} 9. exd4 {[%emt 0:00:02]} b5 {[%emt 0:00:20]} 10. Ne5 {[%emt 0:00:42]} Bb7 {[%emt 0:00:08]} 11. a3 {[%emt 0:00:38]} Be7 {[%emt 0:00:25]} 12. b4 {[%emt 0:00:47]} Qc7 {[%emt 0:00:38]} 13. Bb2 {[%emt 0:00:26]} bxc4 {[%emt 0:01:18]} 14. Nexc4 {[%emt 0:00:36]} Na7 {[%emt 0:00:57]} 15. Rc1 {[%emt 0:00:30]} Bxg2 {[%emt 0:00:12]} 16. Kxg2 {[%emt 0:00:02]} Rac8 {[%emt 0:00:33]} 17. Re1 {[%emt 0:00:46]} Qb7+ {[%emt 0:00:26]} 18. Kg1 {[%emt 0:00:09]} Nd5 {[%emt 0:00:14]} 19. Ne4 {[%emt 0:00:12]} Qb8 {[%emt 0:00:55]} 20. Nc5 {[%emt 0:00:13]} Qb5 {[%emt 0:00:07]} 21. Qf3 {[%emt 0:00:45]} d6 {[%emt 0:00:15]} 22. a4 {[%emt 0:00:47]} Qxb4 {[%emt 0:00:08]} 23. Ba3 {[%emt 0:00:05]} Qb8 {[%emt 0:01:23]} 24. Nd7 {[%emt 0:00:13]} Qa8 {[%emt 0:00:19]} 25. Nxf8 {[%emt 0:00:10]} Rxf8 {[%emt 0:00:11]} 26. Bxd6 {[%emt 0:00:15]} Bxd6 {[%emt 0:00:19]} 27. Nxd6 {[%emt 0:00:02]} Nc6 {[%emt 0:00:01]} 28. Qe4 {[%emt 0:00:27]} a5 {[%emt 0:01:06]} 29. Nb5 {[%emt 0:00:16]} Ncb4 {[%emt 0:00:10]} 30. Rc5 {[%emt 0:00:20]} Qd8 {[%emt 0:00:02]} 31. Rec1 {[%emt 0:00:10]} Qf6 {[%emt 0:00:10]} 32. Nc7 {[%emt 0:00:14]} Nxc7 {[%emt 0:00:09]} 33. Rxc7 {[%emt 0:00:02]} g6 {[%emt 0:00:02]} 34. R1c3 {[%emt 0:00:22]} Nd5 {[%emt 0:00:02]} 35. Rf3 {[%emt 0:00:06]} Qg5 {[%emt 0:00:05]} 36. Rc5 {[%emt 0:00:16]} Qd2 {[%emt 0:00:03]} 37. Qd3 {[%emt 0:00:14]} Qe1+ {[%emt 0:00:03]} 38. Kg2 {[%emt 0:00:01]} Nb4 {[%emt 0:00:04]} 39. Qc3 {[%emt 0:00:04]} Qd1 {[%emt 0:00:02]} 40. Rxa5 {[%emt 0:00:05]} Nd5 {[%emt 0:00:02]} 41. Qd3 {[%emt 0:00:04]} Qc1 {[%emt 0:00:04]} 42. Rc5 {[%emt 0:00:04]} Qa1 {[%emt 0:00:02]} 43. a5 {[%emt 0:00:06]} Rd8 {[%emt 0:00:02]} 44. a6 {[%emt 0:00:16]} Ra8 {[%emt 0:00:01]} 45. Rc6 {[%emt 0:00:04]} Nb4 {[%emt 0:00:03]} 46. Qc3 {[%emt 0:00:02]} Qxc3 {[%emt 0:00:05]} 47. Rcxc3 {[%emt 0:00:05]} Nxa6 {[%emt 0:00:02]} 48. Ra3 {[%emt 0:00:01]} Nc7 {[%emt 0:00:03]} 49. Rxa8+ {[%emt 0:00:02]} Nxa8 {[%emt 0:00:01]} 50. Rb3 {[%emt 0:00:02]} Nc7 {[%emt 0:00:01]} 51. Kf3 {[%emt 0:00:03]} Nd5 {[%emt 0:00:01]} 52. Ke4 {[%emt 0:00:02]} Kg7 {[%emt 0:00:03]} 53. Rb7 {[%emt 0:00:02]} h6 {[%emt 0:00:03]} 54. f4 {[%emt 0:00:03]} Kf6 {[%emt 0:00:02]} 55. g4 {[%emt 0:00:03]} h5 {[%emt 0:00:03]} 56. g5+ {[%emt 0:00:02]} Kg7 {[%emt 0:00:01]} 57. Rd7 {[%emt 0:00:04]} Nc3+ {[%emt 0:00:03]} 58. Kf3 {[%emt 0:00:11]} Kf8 {[%emt 0:00:02]} 59. Rc7 {[%emt 0:00:08]} Nd5 {[%emt 0:00:01]} 60. Rc5 {[%emt 0:00:04]} Ke7 {[%emt 0:00:03]} 61. Ke4 {[%emt 0:00:02]} Kd6 {[%emt 0:00:02]} 62. Rc8 {[%emt 0:00:03]} Nb6 {[%emt 0:00:09]} 63. Rb8 {[%emt 0:00:05]} Nc4 {[%emt 0:00:10]} 64. Rf8 {[%emt 0:00:08]} Ke7 {[%emt 0:00:00]} 65. Ra8 {[%emt 0:00:03]} Nd6+ {[%emt 0:00:02]} 66. Kd3 {[%emt 0:00:03]} Kd7 {[%emt 0:00:11]} 67. Ra7+ {[%emt 0:00:05]} Kc6 {[%emt 0:00:01]} 68. Ra6+ {[%emt 0:00:04]} Kc7 {[%emt 0:00:03]} 69. Kc3 {[%emt 0:00:04]} Kd7 {[%emt 0:00:08]} 70. Kb4 {[%emt 0:00:03]} Ne4 {[%emt 0:00:05]} 71. Ra7+ {[%emt 0:00:03]} Ke8 {[%emt 0:00:01]} 72. Kb5 {[%emt 0:00:03]} Nd2 {[%emt 0:00:04]} 73. Kc6 {[%emt 0:00:03]} Nf3 {[%emt 0:00:02]} 74. Kd6 {[%emt 0:00:03]} Kf8 {[%emt 0:00:03]} 75. Ra8+ {[%emt 0:00:36]} Kg7 {[%emt 0:00:01]} 76. h3 {[%emt 0:00:04]} Nxd4 {[%emt 0:00:02]} 77. Ke5 {[%emt 0:00:03]} Nf5 {[%emt 0:00:05]} 78. Ra7 {[%emt 0:00:02]} Nh4 {[%emt 0:00:03]} 79. Rb7 {[%emt 0:00:03]} Nf3+ {[%emt 0:00:04]} 80. Ke4 {[%emt 0:00:01]} Nh4 {[%emt 0:00:04]} 81. Ra7 {[%emt 0:00:04]} Nf5 {[%emt 0:00:04]} 82. Ke5 {[%emt 0:00:03]} Ne3 {[%emt 0:00:05]} 83. Ke4 {[%emt 0:00:02]} Nd5 {[%emt 0:00:02]} 84. Rd7 {[%emt 0:00:03]} Nb6 {[%emt 0:00:05]} 85. Rd6 {[%emt 0:00:03]} Nc4 {[%emt 0:00:05]} 86. Rd4 {[%emt 0:00:03]} Nb6 {[%emt 0:00:01]} 87. Rd6 {[%emt 0:00:02]} Nc8 {[%emt 0:00:01]} 88. Rc6 {[%emt 0:00:02]} Ne7 {[%emt 0:00:00]} 89. Rc5 {[%emt 0:00:02]} Kf8 {[%emt 0:00:02]} 90. Ra5 {[%emt 0:00:02]} Nd5 {[%emt 0:00:04]} 91. Ra8+ {[%emt 0:00:03]} Ke7 {[%emt 0:00:01]} 92. Ra7+ {[%emt 0:00:01]} Kf8 {[%emt 0:00:07]} 93. Ra5 {[%emt 0:00:03]} Ne7 {[%emt 0:00:06]} 94. Rb5 {[%emt 0:00:03]} Nf5 {[%emt 0:00:05]} 95. Ra5 {[%emt 0:00:02]} h4 {[%emt 0:00:01]} 96. Ke5 {[%emt 0:00:03]} Ne7 {[%emt 0:00:10]} 97. Ra8+ {[%emt 0:00:02]} Kg7 {[%emt 0:00:00]} 98. Ra2 {[%emt 0:00:03]} Nd5 {[%emt 0:00:00]} 99. Rg2 {[%emt 0:00:03]} Ne3 {[%emt 0:00:00]} 100. Re2 {[%emt 0:00:03]} Nf5 {[%emt 0:00:01]} 101. Re1 {[%emt 0:00:03]} Ng3 {[%emt 0:00:02]} 102. Ra1 {[%emt 0:00:02]} Ne2 {[%emt 0:00:05]} 103. Ke4 {[%emt 0:00:02]} Nc3+ {[%emt 0:00:03]} 104. Kf3 {[%emt 0:00:01]} Nd5 {[%emt 0:00:04]} 105. Kg4 {[%emt 0:00:02]} f6 {[%emt 0:00:03]} 106. Kxh4 {[%emt 0:00:04]} Nxf4 {[%emt 0:00:02]} 107. gxf6+ {[%emt 0:00:02]} Kxf6 {[%emt 0:00:01]} 108. Rf1 {[%emt 0:00:02]} e5 {[%emt 0:00:04]} 109. Kg4 {[%emt 0:00:02]} Ke6 {[%emt 0:00:03]} 110. h4 {[%emt 0:00:03]} Kf6 {[%emt 0:00:03]} 111. Rf3 {[%emt 0:00:04]} Ke6 {[%emt 0:00:05]} 112. Kg5 {[%emt 0:00:01]} Kd5 {[%emt 0:00:03]} 113. Ra3 {[%emt 0:00:03]} Ke4 {[%emt 0:00:04]} 114. Ra4+ {[%emt 0:00:03]} Kf3 {[%emt 0:00:02]} 115. Ra3+ {[%emt 0:00:02]} Ke4 {[%emt 0:00:03]} 116. Ra4+ {[%emt 0:00:04]} Kf3 {[%emt 0:00:03]} 117. Ra3+ {[%emt 0:00:01]} 1/2-1/2

[Event "Polish University-ch Women 2024"]
[Site "Lublin"]
[Date "2024.02.24"]
[Round "8.6"]
[White "Rykala, Monika"]
[Black "Cieslak, Wiktoria"]
[Result "1-0"]
[ECO "A47"]
[WhiteElo "1893"]
[BlackElo "1868"]
[Annotator "NA RC"]
[PlyCount "103"]
[EventDate "2024.02.22"]
[EventType "swiss"]
[EventCountry "POL"]
[SourceTitle "playchess.com"]
[Source "ChessBase"]
[SourceQuality "1"]
[TimeControl "600+3"]

1. d4 {[%emt 0:10:06]} Nf6 {[%emt 0:00:02]} 2. Nf3 {[%emt 0:00:00]} e6 {[%emt 0:00:02]} 3. Bf4 {[%emt 0:00:00]} b6 {[%emt 0:00:04]} 4. e3 {[%emt 0:00:00]} Bb7 {[%emt 0:00:01]} 5. Nbd2 {[%emt 0:00:00]} c5 {[%emt 0:00:07]} 6. c3 {[%emt 0:00:00]} Be7 {[%emt 0:00:02]} 7. Bd3 {[%emt 0:00:00]} O-O {[%emt 0:00:15]} 8. h3 {[%emt 0:00:00]} d6 {[%emt 0:00:06]} 9. Bh2 {[%emt 0:00:00]} Re8 {[%emt 0:00:16]} 10. O-O {[%emt 0:00:00]} Nbd7 {[%emt 0:00:04]} 11. Rc1 {[%emt 0:00:00]} Rc8 {[%emt 0:00:02]} 12. Re1 {[%emt 0:00:00]} Bf8 {[%emt 0:00:05]} 13. Nc4 {[%emt 0:00:00]} e5 {[%emt 0:01:32]} 14. dxe5 {[%emt 0:00:00]} Bxf3 {[%emt 0:00:07]} 15. Qxf3 {[%emt 0:00:00]} Nxe5 {[%emt 0:00:15]} 16. Nxe5 {[%emt 0:00:00]} dxe5 {[%emt 0:00:02]} 17. Bb5 {[%emt 0:00:00]} Re6 {[%emt 0:00:27]} 18. Red1 {[%emt 0:00:00]} Qc7 {[%emt 0:00:13]} 19. Bg3 {[%emt 0:00:00]} Bd6 {[%emt 0:01:09]} 20. Bh4 {[%emt 0:00:00]} e4 {[%emt 0:00:12]} 21. Qe2 {[%emt 0:00:00]} Nd7 {[%emt 0:02:29]} 22. Rxd6 {[%emt 0:00:00]} Rxd6 {[%emt 0:00:17]} 23. Bg3 {[%emt 0:00:00]} Nf6 {[%emt 0:00:10]} 24. Bxd6 {[%emt 0:00:00]} Qxd6 {[%emt 0:00:01]} 25. Rd1 {[%emt 0:00:00]} Qe6 {[%emt 0:00:11]} 26. Qc4 {[%emt 0:00:00]} Qe7 {[%emt 0:00:01]} 27. Qa4 {[%emt 0:00:00]} h6 {[%emt 0:00:10]} 28. Bc4 {[%emt 0:00:00]} Rc7 {[%emt 0:00:28]} 29. Bb5 {[%emt 0:00:00]} h5 {[%emt 0:01:15]} 30. Qc4 {[%emt 0:00:00]} Rc8 {[%emt 0:00:11]} 31. a4 {[%emt 0:00:35]} Rd8 {[%emt 0:00:07]} 32. Qe2 {[%emt 0:00:01]} Rc8 {[%emt 0:00:18]} 33. Qd2 {[%emt 0:00:15]} Qb7 {[%emt 0:00:18]} 34. Qd6 {[%emt 0:00:16]} a6 {[%emt 0:00:02]} 35. Be2 {[%emt 0:00:01]} b5 {[%emt 0:00:05]} 36. axb5 {[%emt 0:00:03]} axb5 {[%emt 0:00:01]} 37. Qe5 {[%emt 0:00:05]} h4 {[%emt 0:00:11]} 38. Qg5 {[%emt 0:00:12]} b4 {[%emt 0:00:04]} 39. c4 {[%emt 0:00:06]} Qe7 {[%emt 0:00:10]} 40. Qxh4 {[%emt 0:00:09]} Qe5 {[%emt 0:00:00]} 41. b3 {[%emt 0:00:07]} Qb2 {[%emt 0:00:03]} 42. Kf1 {[%emt 0:00:04]} Qxb3 {[%emt 0:00:01]} 43. Bg4 {[%emt 0:00:03]} Qxc4+ {[%emt 0:00:02]} 44. Kg1 {[%emt 0:00:02]} Ra8 {[%emt 0:00:10]} 45. Bf5 {[%emt 0:00:02]} Qc3 {[%emt 0:00:05]} 46. g4 {[%emt 0:00:03]} b3 {[%emt 0:00:06]} 47. g5 {[%emt 0:00:04]} Qe5 {[%emt 0:00:05]} 48. gxf6 {[%emt 0:00:05]} Qxf5 {[%emt 0:00:01]} 49. fxg7 {[%emt 0:00:01]} Qg6+ {[%emt 0:00:02]} 50. Kh2 {[%emt 0:00:02]} Qh7 {[%emt 0:00:11]} 51. Qf6 {[%emt 0:00:04]} Qg6 {[%emt 0:00:07]} 52. Qe5 {[%emt 0:00:06]} 1-0

[Event "Polish University-ch Women 2024"]
[Site "Lublin"]
[Date "2024.02.24"]
[Round "8.7"]
[White "Harazinska, Magdalena"]
[Black "Marczuk, Anna"]
[Result "1/2-1/2"]
[ECO "A41"]
[WhiteElo "1950"]
[BlackElo "1982"]
[Annotator "NA RC"]
[PlyCount "102"]
[EventDate "2024.02.22"]
[EventType "swiss"]
[EventCountry "POL"]
[SourceTitle "playchess.com"]
[Source "ChessBase"]
[SourceQuality "1"]
[TimeControl "600+3"]

1. d4 {[%emt 0:00:02]} d6 {[%emt 0:00:01]} 2. c4 {[%emt 0:00:01]} e5 {[%emt 0:00:02]} 3. d5 {[%emt 0:00:03]} f5 {[%emt 0:00:02]} 4. Nc3 {[%emt 0:00:02]} Nf6 {[%emt 0:00:01]} 5. Nf3 {[%emt 0:00:06]} Be7 {[%emt 0:00:49]} 6. g3 {[%emt 0:00:05]} O-O {[%emt 0:00:21]} 7. Bg2 {[%emt 0:00:01]} a5 {[%emt 0:00:22]} 8. O-O {[%emt 0:00:06]} Na6 {[%emt 0:00:03]} 9. b3 {[%emt 0:00:14]} Nc5 {[%emt 0:00:37]} 10. Bb2 {[%emt 0:00:02]} Nfe4 {[%emt 0:01:26]} 11. Nd2 {[%emt 0:01:26]} Nxc3 {[%emt 0:00:34]} 12. Bxc3 {[%emt 0:00:01]} Qe8 {[%emt 0:01:19]} 13. a3 {[%emt 0:00:42]} Bd7 {[%emt 0:00:19]} 14. Qc2 {[%emt 0:00:23]} f4 {[%emt 0:00:48]} 15. e3 {[%emt 0:00:36]} fxe3 {[%emt 0:00:39]} 16. fxe3 {[%emt 0:00:02]} Bg5 {[%emt 0:00:01]} 17. Rxf8+ {[%emt 0:01:04]} Qxf8 {[%emt 0:00:03]} 18. Re1 {[%emt 0:00:07]} Qe8 {[%emt 0:01:15]} 19. h4 {[%emt 0:00:47]} Bf6 {[%emt 0:00:20]} 20. Ne4 {[%emt 0:00:25]} Nxe4 {[%emt 0:02:01]} 21. Bxe4 {[%emt 0:00:02]} g6 {[%emt 0:00:00]} 22. Kg2 {[%emt 0:00:12]} Bg4 {[%emt 0:00:00]} 23. Rf1 {[%emt 0:00:16]} Bg7 {[%emt 0:00:00]} 24. Ra1 {[%emt 0:00:16]} b6 {[%emt 0:00:00]} 25. Ra2 {[%emt 0:00:33]} Qf7 {[%emt 0:00:00]} 26. b4 {[%emt 0:00:06]} axb4 {[%emt 0:00:00]} 27. axb4 {[%emt 0:00:01]} Rf8 {[%emt 0:00:00]} 28. Qf2 {[%emt 0:00:12]} Qxf2+ {[%emt 0:00:00]} 29. Rxf2 {[%emt 0:00:02]} Rxf2+ {[%emt 0:00:00]} 30. Kxf2 {[%emt 0:00:02]} Kf7 {[%emt 0:00:00]} 31. Bd3 {[%emt 0:00:13]} Ke7 {[%emt 0:00:00]} 32. Bd2 {[%emt 0:00:11]} Kf6 {[%emt 0:00:00]} 33. e4 {[%emt 0:00:08]} Ke7 {[%emt 0:00:00]} 34. Be3 {[%emt 0:00:03]} Kd7 {[%emt 0:00:00]} 35. c5 {[%emt 0:00:01]} bxc5 {[%emt 0:00:00]} 36. Bb5+ {[%emt 0:00:07]} Kd8 {[%emt 0:00:00]} 37. bxc5 {[%emt 0:00:02]} Bf8 {[%emt 0:00:00]} 38. c6 {[%emt 0:00:11]} Be7 {[%emt 0:00:00]} 39. Be2 {[%emt 0:00:17]} Bc8 {[%emt 0:00:00]} 40. Ke1 {[%emt 0:00:16]} Bh3 {[%emt 0:00:08]} 41. Kd2 {[%emt 0:00:06]} Bc8 {[%emt 0:00:15]} 42. Kc3 {[%emt 0:00:02]} Ke8 {[%emt 0:00:13]} 43. Kb4 {[%emt 0:00:09]} Kd8 {[%emt 0:00:01]} 44. Ka5 {[%emt 0:00:01]} Ke8 {[%emt 0:00:01]} 45. Bd2 {[%emt 0:00:14]} Kd8 {[%emt 0:00:03]} 46. Ba6 {[%emt 0:00:26]} Bg4 {[%emt 0:00:01]} 47. Bb7 {[%emt 0:00:06]} Bf3 {[%emt 0:00:02]} 48. Ba6 {[%emt 0:00:07]} Bxe4 {[%emt 0:00:04]} 49. Bc4 {[%emt 0:00:01]} Bf5 {[%emt 0:00:13]} 50. Kb4 {[%emt 0:00:02]} Bf6 {[%emt 0:00:07]} 51. Be3 {[%emt 0:00:13]} Be7 {[%emt 0:00:08]} 1/2-1/2

[Event "Polish University-ch Women 2024"]
[Site "Lublin"]
[Date "2024.02.24"]
[Round "8.8"]
[White "Zarebska, Lena"]
[Black "Kaczmarska, Joanna"]
[Result "0-1"]
[ECO "B01"]
[WhiteElo "1871"]
[BlackElo "1870"]
[Annotator "NA COMBH"]
[PlyCount "114"]
[EventDate "2024.02.22"]
[EventType "swiss"]
[EventCountry "POL"]
[SourceTitle "playchess.com"]
[Source "ChessBase"]
[SourceQuality "1"]
[TimeControl "600+3"]

1. e4 {[%emt 0:00:02]} d5 {[%emt 0:00:01]} 2. exd5 {[%emt 0:00:02]} Qxd5 {[%emt 0:00:01]} 3. Nc3 {[%emt 0:00:02]} Qa5 {[%emt 0:00:01]} 4. d4 {[%emt 0:00:01]} Nf6 {[%emt 0:00:01]} 5. Nf3 {[%emt 0:00:01]} Bf5 {[%emt 0:00:02]} 6. Bd2 {[%emt 0:00:10]} c6 {[%emt 0:00:03]} 7. Ne5 {[%emt 0:00:04]} Nbd7 {[%emt 0:00:07]} 8. Nc4 {[%emt 0:00:02]} Qc7 {[%emt 0:00:06]} 9. a4 {[%emt 0:00:02]} g6 {[%emt 0:00:41]} 10. Be2 {[%emt 0:01:03]} Bg7 {[%emt 0:00:03]} 11. O-O {[%emt 0:00:02]} O-O {[%emt 0:00:03]} 12. Qc1 {[%emt 0:00:13]} Ng4 {[%emt 0:00:27]} 13. Bf4 {[%emt 0:00:08]} Qd8 {[%emt 0:00:51]} 14. h3 {[%emt 0:00:05]} Ngf6 {[%emt 0:00:18]} 15. a5 {[%emt 0:00:52]} Nd5 {[%emt 0:00:27]} 16. Nxd5 {[%emt 0:00:27]} cxd5 {[%emt 0:00:02]} 17. Ne5 {[%emt 0:00:01]} Nxe5 {[%emt 0:00:33]} 18. dxe5 {[%emt 0:00:54]} Qc7 {[%emt 0:00:16]} 19. g4 {[%emt 0:02:13]} Qxc2 {[%emt 0:02:17]} 20. gxf5 {[%emt 0:00:02]} Qxe2 {[%emt 0:00:02]} 21. Re1 {[%emt 0:00:01]} Qd3 {[%emt 0:00:23]} 22. fxg6 {[%emt 0:00:17]} fxg6 {[%emt 0:00:25]} 23. Bg3 {[%emt 0:00:31]} Rac8 {[%emt 0:00:45]} 24. Qg5 {[%emt 0:00:04]} Rf3 {[%emt 0:02:04]} 25. Ra3 {[%emt 0:00:46]} Qf5 {[%emt 0:00:28]} 26. Qxe7 {[%emt 0:00:26]} Rxa3 {[%emt 0:00:28]} 27. bxa3 {[%emt 0:00:18]} d4 {[%emt 0:00:21]} 28. Qxb7 {[%emt 0:00:05]} d3 {[%emt 0:00:04]} 29. e6 {[%emt 0:00:01]} Re8 {[%emt 0:00:06]} 30. Qd7 {[%emt 0:00:15]} Rf8 {[%emt 0:00:02]} 31. Qd6 {[%emt 0:00:53]} Bc3 {[%emt 0:00:03]} 32. Rd1 {[%emt 0:00:05]} d2 {[%emt 0:00:01]} 33. e7 {[%emt 0:00:57]} Re8 {[%emt 0:00:01]} 34. Qc6 {[%emt 0:00:02]} Qc8 {[%emt 0:00:01]} 35. Qd5+ {[%emt 0:00:02]} Kg7 {[%emt 0:00:08]} 36. Be5+ {[%emt 0:00:02]} Bxe5 {[%emt 0:00:01]} 37. Qxe5+ {[%emt 0:00:02]} Kf7 {[%emt 0:00:01]} 38. Qd5+ {[%emt 0:00:13]} Kxe7 {[%emt 0:00:03]} 39. Rxd2 {[%emt 0:00:09]} Qc1+ {[%emt 0:00:01]} 40. Rd1 {[%emt 0:00:11]} Qxa3 {[%emt 0:00:02]} 41. Qb7+ {[%emt 0:00:15]} Kf6 {[%emt 0:00:07]} 42. Qxa7 {[%emt 0:00:02]} Re5 {[%emt 0:00:05]} 43. Qb6+ {[%emt 0:00:03]} Kf5 {[%emt 0:00:04]} 44. Qb1+ {[%emt 0:00:02]} Kf6 {[%emt 0:00:03]} 45. Qb6+ {[%emt 0:00:01]} Kf5 {[%emt 0:00:02]} 46. a6 {[%emt 0:00:01]} Ra5 {[%emt 0:00:02]} 47. Qb1+ {[%emt 0:00:02]} Kf6 {[%emt 0:00:02]} 48. Qb6+ {[%emt 0:00:03]} Kf5 {[%emt 0:00:05]} 49. Qd4 {[%emt 0:00:10]} Rxa6 {[%emt 0:00:03]} 50. Re1 {[%emt 0:00:04]} Ra5 {[%emt 0:00:04]} 51. Qg4+ {[%emt 0:00:02]} Kf6 {[%emt 0:00:02]} 52. Re6+ {[%emt 0:00:03]} Kf7 {[%emt 0:00:01]} 53. Re1 {[%emt 0:00:03]} Rf5 {[%emt 0:00:07]} 54. Qc4+ {[%emt 0:00:01]} Kg7 {[%emt 0:00:02]} 55. Rf1 {[%emt 0:00:03]} Qxh3 {[%emt 0:00:04]} 56. Qc7+ {[%emt 0:00:05]} Kh6 {[%emt 0:00:02]} 57. Qc1+ {[%emt 0:00:04]} Rg5+ {[%emt 0:00:01]} 0-1

[Event "Polish University-ch Women 2024"]
[Site "Lublin"]
[Date "2024.02.24"]
[Round "8.9"]
[White "Dmochowska, Agnieszka"]
[Black "Michalska, Aleksandra"]
[Result "1/2-1/2"]
[ECO "C60"]
[WhiteElo "2001"]
[BlackElo "1812"]
[Annotator "NA RC"]
[PlyCount "113"]
[EventDate "2024.02.22"]
[EventType "swiss"]
[EventCountry "POL"]
[SourceTitle "playchess.com"]
[Source "ChessBase"]
[SourceQuality "1"]
[TimeControl "600+3"]

1. e4 {[%emt 0:00:01]} e5 {[%emt 0:00:01]} 2. Nf3 {[%emt 0:00:01]} Nc6 {[%emt 0:00:01]} 3. Bb5 {[%emt 0:00:01]} g6 {[%emt 0:00:01]} 4. c3 {[%emt 0:00:09]} Nge7 {[%emt 0:00:06]} 5. d4 {[%emt 0:00:03]} exd4 {[%emt 0:00:01]} 6. cxd4 {[%emt 0:00:00]} d5 {[%emt 0:00:02]} 7. e5 {[%emt 0:00:11]} Bg7 {[%emt 0:00:03]} 8. O-O {[%emt 0:00:13]} a6 {[%emt 0:00:02]} 9. Ba4 {[%emt 0:00:03]} O-O {[%emt 0:00:04]} 10. Bg5 {[%emt 0:00:43]} b5 {[%emt 0:01:57]} 11. Bb3 {[%emt 0:00:08]} h6 {[%emt 0:00:09]} 12. Be3 {[%emt 0:00:27]} Na5 {[%emt 0:00:28]} 13. Nbd2 {[%emt 0:00:28]} Nc4 {[%emt 0:00:06]} 14. Qc1 {[%emt 0:02:01]} Nf5 {[%emt 0:00:44]} 15. Bxc4 {[%emt 0:00:40]} dxc4 {[%emt 0:00:08]} 16. b3 {[%emt 0:00:01]} cxb3 {[%emt 0:00:10]} 17. Nxb3 {[%emt 0:00:03]} Bb7 {[%emt 0:00:03]} 18. Qd1 {[%emt 0:00:12]} Qd5 {[%emt 0:00:49]} 19. Nc5 {[%emt 0:00:16]} Bc6 {[%emt 0:00:04]} 20. Qb3 {[%emt 0:00:31]} Qd8 {[%emt 0:00:35]} 21. Qd1 {[%emt 0:00:01]} Qd5 {[%emt 0:00:12]} 22. Nd3 {[%emt 0:00:21]} g5 {[%emt 0:00:23]} 23. Nb4 {[%emt 0:00:06]} Qd7 {[%emt 0:00:04]} 24. Nxc6 {[%emt 0:00:01]} Qxc6 {[%emt 0:00:02]} 25. Rc1 {[%emt 0:00:04]} Qd5 {[%emt 0:00:18]} 26. Qc2 {[%emt 0:00:27]} Qe6 {[%emt 0:00:53]} 27. d5 {[%emt 0:00:52]} Nxe3 {[%emt 0:00:27]} 28. dxe6 {[%emt 0:00:01]} Nxc2 {[%emt 0:00:01]} 29. Rxc2 {[%emt 0:00:12]} g4 {[%emt 0:00:17]} 30. Nh4 {[%emt 0:00:15]} fxe6 {[%emt 0:00:18]} 31. Rxc7 {[%emt 0:00:02]} Bxe5 {[%emt 0:00:08]} 32. Rc6 {[%emt 0:00:03]} Bf6 {[%emt 0:00:15]} 33. Ng6 {[%emt 0:00:01]} Rfe8 {[%emt 0:00:03]} 34. Nf4 {[%emt 0:00:08]} Kf7 {[%emt 0:00:08]} 35. Re1 {[%emt 0:00:02]} Ra7 {[%emt 0:00:46]} 36. g3 {[%emt 0:00:01]} e5 {[%emt 0:00:14]} 37. Nd5 {[%emt 0:00:17]} Re6 {[%emt 0:00:05]} 38. Rc8 {[%emt 0:00:01]} Rd7 {[%emt 0:00:13]} 39. Ne3 {[%emt 0:00:37]} Re8 {[%emt 0:00:12]} 40. Rxe8 {[%emt 0:00:18]} Kxe8 {[%emt 0:00:01]} 41. Nxg4 {[%emt 0:00:01]} Bg7 {[%emt 0:00:04]} 42. Re2 {[%emt 0:00:04]} Re7 {[%emt 0:00:08]} 43. h4 {[%emt 0:00:02]} h5 {[%emt 0:00:03]} 44. Ne3 {[%emt 0:00:01]} Bh8 {[%emt 0:00:08]} 45. Kg2 {[%emt 0:00:07]} Rb7 {[%emt 0:00:08]} 46. Nf5 {[%emt 0:00:01]} Rd7 {[%emt 0:00:05]} 47. Ne3 {[%emt 0:00:23]} Kf7 {[%emt 0:00:05]} 48. Nc2 {[%emt 0:00:04]} a5 {[%emt 0:00:05]} 49. Na3 {[%emt 0:00:01]} b4 {[%emt 0:00:05]} 50. Nc4 {[%emt 0:00:00]} Rd5 {[%emt 0:00:01]} 51. Kf3 {[%emt 0:00:10]} Ke6 {[%emt 0:00:10]} 52. Ne3 {[%emt 0:00:30]} Rd3 {[%emt 0:00:06]} 53. Kg2 {[%emt 0:00:02]} Rd4 {[%emt 0:00:09]} 54. Nc2 {[%emt 0:00:02]} Rc4 {[%emt 0:00:04]} 55. Ne3 {[%emt 0:00:01]} Rd4 {[%emt 0:00:01]} 56. Nc2 {[%emt 0:00:01]} Rc4 {[%emt 0:00:02]} 57. Ne3 {[%emt 0:00:42]} 1/2-1/2

[Event "Polish University-ch Women 2024"]
[Site "Lublin"]
[Date "2024.02.24"]
[Round "8.10"]
[White "Shaban, Aliaksandra"]
[Black "Moscicka, Pola"]
[Result "1-0"]
[ECO "E11"]
[WhiteElo "1708"]
[BlackElo "1960"]
[Annotator "NA RC"]
[PlyCount "75"]
[EventDate "2024.02.22"]
[EventType "swiss"]
[EventCountry "POL"]
[SourceTitle "playchess.com"]
[Source "ChessBase"]
[SourceQuality "1"]
[TimeControl "600+3"]

1. d4 {[%emt 0:00:01]} Nf6 {[%emt 0:00:02]} 2. c4 {[%emt 0:00:09]} e6 {[%emt 0:00:02]} 3. Nf3 {[%emt 0:00:01]} d5 {[%emt 0:00:02]} 4. e3 {[%emt 0:00:04]} Bb4+ {[%emt 0:00:17]} 5. Bd2 {[%emt 0:00:03]} Qe7 {[%emt 0:00:14]} 6. a3 {[%emt 0:00:06]} Bxd2+ {[%emt 0:00:05]} 7. Nbxd2 {[%emt 0:00:05]} O-O {[%emt 0:00:05]} 8. Bd3 {[%emt 0:00:10]} b6 {[%emt 0:00:02]} 9. O-O {[%emt 0:00:06]} Bb7 {[%emt 0:00:09]} 10. Qc2 {[%emt 0:00:05]} Nbd7 {[%emt 0:00:15]} 11. cxd5 {[%emt 0:00:07]} exd5 {[%emt 0:02:07]} 12. Qxc7 {[%emt 0:00:10]} Rab8 {[%emt 0:00:12]} 13. Qf4 {[%emt 0:00:37]} Ne4 {[%emt 0:00:09]} 14. Rfd1 {[%emt 0:00:28]} Ndf6 {[%emt 0:00:06]} 15. Ne5 {[%emt 0:00:50]} Qe6 {[%emt 0:00:21]} 16. f3 {[%emt 0:00:41]} Nd6 {[%emt 0:00:09]} 17. Rac1 {[%emt 0:00:38]} Rbc8 {[%emt 0:00:34]} 18. e4 {[%emt 0:00:35]} Nde8 {[%emt 0:02:05]} 19. Nf1 {[%emt 0:01:13]} Nd6 {[%emt 0:00:47]} 20. Ng3 {[%emt 0:00:17]} dxe4 {[%emt 0:00:14]} 21. fxe4 {[%emt 0:00:07]} Rfd8 {[%emt 0:00:58]} 22. d5 {[%emt 0:00:22]} Qe7 {[%emt 0:00:03]} 23. Nf3 {[%emt 0:00:15]} Nde8 {[%emt 0:00:50]} 24. Nf5 {[%emt 0:00:18]} Qd7 {[%emt 0:00:10]} 25. Ne5 {[%emt 0:00:18]} Qa4 {[%emt 0:00:13]} 26. Ne7+ {[%emt 0:00:19]} Kf8 {[%emt 0:00:04]} 27. Nxc8 {[%emt 0:00:07]} Bxc8 {[%emt 0:00:03]} 28. Nc6 {[%emt 0:00:06]} Nxd5 {[%emt 0:00:10]} 29. Qf2 {[%emt 0:00:32]} Rd6 {[%emt 0:00:32]} 30. exd5 {[%emt 0:00:07]} Rxd5 {[%emt 0:00:08]} 31. Qc2 {[%emt 0:00:27]} Qf4 {[%emt 0:00:05]} 32. Qf2 {[%emt 0:00:08]} Qa4 {[%emt 0:00:02]} 33. Nb4 {[%emt 0:00:05]} Re5 {[%emt 0:00:11]} 34. Bc2 {[%emt 0:00:08]} Qb5 {[%emt 0:00:05]} 35. Bxh7 {[%emt 0:00:13]} Bg4 {[%emt 0:00:07]} 36. Rd2 {[%emt 0:00:10]} Nf6 {[%emt 0:00:03]} 37. Bd3 {[%emt 0:00:03]} a5 {[%emt 0:00:05]} 38. Bxb5 {[%emt 0:00:02]} 1-0